{"text_format":"1","workbook":"xlsx","n_sheets":3,"sheets":["Danh sách Kiểm kê Nhà kho","Danh sách Chọn Kiểm kê","Tìm Thùng"],"not_rendered":{"charts":0,"images":0,"macros":1,"external_links":0,"defined_names":5,"comments":0,"pivot_tables":0},"unopened":[],"bounds":{"document_bytes":16777216,"sheet_cells":100000,"rows_first":2000,"rows_last":500,"rows_between":2000,"halvings":0,"cell_chars":16384,"cell_head_chars":4096},"cells_cut":0,"cells_raw":0,"read":"whole","date_system":"1900"}

{"sheet":"Danh sách Kiểm kê Nhà kho","index":0,"n_rows":15,"n_cols":11,"rows_kept":15,"cut":false,"hidden":false,"merged":[]}
[null,"DANH SÁCH KIỂM KÊ NHÀ KHO"]
[null,"TỔNG GIÁ TRỊ KIỂM KÊ:","MỤC KIỂM KÊ:","SỐ THÙNG:","DANH SÁCH CHỌN KIỂM KÊ","TÌM THÙNG"]
[null,{"$f":"SUM(Danh_Sách_Kiểm_Kê[GIÁ TRỊ KIỂM KÊ])","v":102278000},{"$f":"COUNTA(Danh_Sách_Kiểm_Kê[MÔ TẢ])","v":11},{"$f":"SUMPRODUCT((1/COUNTIF(Danh_Sách_Kiểm_Kê[THÙNG '#],Danh_Sách_Kiểm_Kê[THÙNG '#]&\"\")))","v":6}]
[null,"SKU","MÔ TẢ","THÙNG #","VỊ TRÍ","ĐƠN VỊ","SL","SL ĐẶT HÀNG LẠI","CHI PHÍ","GIÁ TRỊ KIỂM KÊ","ĐẶT HÀNG LẠI"]
[null,"SP7875","Mục 1","T345",{"$f":"IFERROR(VLOOKUP(Danh_Sách_Kiểm_Kê[[#This Row],[THÙNG '#]],Tìm_Thùng[],3,FALSE),\"\")","v":"Hàng 2, khoảng trống 1"},"Một",20,10,660000,{"$f":"Danh_Sách_Kiểm_Kê[[#This Row],[SL]]*Danh_Sách_Kiểm_Kê[[#This Row],[CHI PHÍ]]","v":13200000},{"$f":"IFERROR(IF(Danh_Sách_Kiểm_Kê[[#This Row],[SL]]<=Danh_Sách_Kiểm_Kê[[#This Row],[SL ĐẶT HÀNG LẠI]],1,0),0)","v":0}]
[null,"TR87680","Mục 2","T345",{"$f":"IFERROR(VLOOKUP(Danh_Sách_Kiểm_Kê[[#This Row],[THÙNG '#]],Tìm_Thùng[],3,FALSE),\"\")","v":"Hàng 2, khoảng trống 1"},"Một",30,15,880000,{"$f":"Danh_Sách_Kiểm_Kê[[#This Row],[SL]]*Danh_Sách_Kiểm_Kê[[#This Row],[CHI PHÍ]]","v":26400000},{"$f":"IFERROR(IF(Danh_Sách_Kiểm_Kê[[#This Row],[SL]]<=Danh_Sách_Kiểm_Kê[[#This Row],[SL ĐẶT HÀNG LẠI]],1,0),0)","v":0}]
[null,"MK676554","Mục 3","T5789",{"$f":"IFERROR(VLOOKUP(Danh_Sách_Kiểm_Kê[[#This Row],[THÙNG '#]],Tìm_Thùng[],3,FALSE),\"\")","v":"Hàng 1, khoảng trống 1"},"Một",10,5,110000,{"$f":"Danh_Sách_Kiểm_Kê[[#This Row],[SL]]*Danh_Sách_Kiểm_Kê[[#This Row],[CHI PHÍ]]","v":1100000},{"$f":"IFERROR(IF(Danh_Sách_Kiểm_Kê[[#This Row],[SL]]<=Danh_Sách_Kiểm_Kê[[#This Row],[SL ĐẶT HÀNG LẠI]],1,0),0)","v":0}]
[null,"YE98767","Mục 4","T9876",{"$f":"IFERROR(VLOOKUP(Danh_Sách_Kiểm_Kê[[#This Row],[THÙNG '#]],Tìm_Thùng[],3,FALSE),\"\")","v":"Hàng 3, khoảng trống 2"},"Hộp (chứa 10 đơn vị)",40,10,330000,{"$f":"Danh_Sách_Kiểm_Kê[[#This Row],[SL]]*Danh_Sách_Kiểm_Kê[[#This Row],[CHI PHÍ]]","v":13200000},{"$f":"IFERROR(IF(Danh_Sách_Kiểm_Kê[[#This Row],[SL]]<=Danh_Sách_Kiểm_Kê[[#This Row],[SL ĐẶT HÀNG LẠI]],1,0),0)","v":0}]
[null,"XR23423","Mục 5","T098",{"$f":"IFERROR(VLOOKUP(Danh_Sách_Kiểm_Kê[[#This Row],[THÙNG '#]],Tìm_Thùng[],3,FALSE),\"\")","v":"Hàng 3, khoảng trống 1"},"Một",12,10,572000,{"$f":"Danh_Sách_Kiểm_Kê[[#This Row],[SL]]*Danh_Sách_Kiểm_Kê[[#This Row],[CHI PHÍ]]","v":6864000},{"$f":"IFERROR(IF(Danh_Sách_Kiểm_Kê[[#This Row],[SL]]<=Danh_Sách_Kiểm_Kê[[#This Row],[SL ĐẶT HÀNG LẠI]],1,0),0)","v":0}]
[null,"PW98762","Mục 6","T345",{"$f":"IFERROR(VLOOKUP(Danh_Sách_Kiểm_Kê[[#This Row],[THÙNG '#]],Tìm_Thùng[],3,FALSE),\"\")","v":"Hàng 2, khoảng trống 1"},"Một",7,10,1100000,{"$f":"Danh_Sách_Kiểm_Kê[[#This Row],[SL]]*Danh_Sách_Kiểm_Kê[[#This Row],[CHI PHÍ]]","v":7700000},{"$f":"IFERROR(IF(Danh_Sách_Kiểm_Kê[[#This Row],[SL]]<=Danh_Sách_Kiểm_Kê[[#This Row],[SL ĐẶT HÀNG LẠI]],1,0),0)","v":1}]
[null,"BM87684","Mục 7","T349",{"$f":"IFERROR(VLOOKUP(Danh_Sách_Kiểm_Kê[[#This Row],[THÙNG '#]],Tìm_Thùng[],3,FALSE),\"\")","v":"Hàng 1, khoảng trống 2"},"Một",10,5,220000,{"$f":"Danh_Sách_Kiểm_Kê[[#This Row],[SL]]*Danh_Sách_Kiểm_Kê[[#This Row],[CHI PHÍ]]","v":2200000},{"$f":"IFERROR(IF(Danh_Sách_Kiểm_Kê[[#This Row],[SL]]<=Danh_Sách_Kiểm_Kê[[#This Row],[SL ĐẶT HÀNG LẠI]],1,0),0)","v":0}]
[null,"BH67655","Mục 8","T5789",{"$f":"IFERROR(VLOOKUP(Danh_Sách_Kiểm_Kê[[#This Row],[THÙNG '#]],Tìm_Thùng[],3,FALSE),\"\")","v":"Hàng 1, khoảng trống 1"},"Một",19,10,66000,{"$f":"Danh_Sách_Kiểm_Kê[[#This Row],[SL]]*Danh_Sách_Kiểm_Kê[[#This Row],[CHI PHÍ]]","v":1254000},{"$f":"IFERROR(IF(Danh_Sách_Kiểm_Kê[[#This Row],[SL]]<=Danh_Sách_Kiểm_Kê[[#This Row],[SL ĐẶT HÀNG LẠI]],1,0),0)","v":0}]
[null,"WT98768","Mục 9","T9875",{"$f":"IFERROR(VLOOKUP(Danh_Sách_Kiểm_Kê[[#This Row],[THÙNG '#]],Tìm_Thùng[],3,FALSE),\"\")","v":"Hàng 2, khoảng trống 2"},"Gói (chứa 5 đơn vị)",20,30,308000,{"$f":"Danh_Sách_Kiểm_Kê[[#This Row],[SL]]*Danh_Sách_Kiểm_Kê[[#This Row],[CHI PHÍ]]","v":6160000},{"$f":"IFERROR(IF(Danh_Sách_Kiểm_Kê[[#This Row],[SL]]<=Danh_Sách_Kiểm_Kê[[#This Row],[SL ĐẶT HÀNG LẠI]],1,0),0)","v":1}]
[null,"TS3456","Mục 10","T349",{"$f":"IFERROR(VLOOKUP(Danh_Sách_Kiểm_Kê[[#This Row],[THÙNG '#]],Tìm_Thùng[],3,FALSE),\"\")","v":"Hàng 1, khoảng trống 2"},"Một",15,8,1320000,{"$f":"Danh_Sách_Kiểm_Kê[[#This Row],[SL]]*Danh_Sách_Kiểm_Kê[[#This Row],[CHI PHÍ]]","v":19800000},{"$f":"IFERROR(IF(Danh_Sách_Kiểm_Kê[[#This Row],[SL]]<=Danh_Sách_Kiểm_Kê[[#This Row],[SL ĐẶT HÀNG LẠI]],1,0),0)","v":0}]
[null,"WDG123","Mục 11","T349",{"$f":"IFERROR(VLOOKUP(Danh_Sách_Kiểm_Kê[[#This Row],[THÙNG '#]],Tìm_Thùng[],3,FALSE),\"\")","v":"Hàng 1, khoảng trống 2"},"Một",25,15,176000,{"$f":"Danh_Sách_Kiểm_Kê[[#This Row],[SL]]*Danh_Sách_Kiểm_Kê[[#This Row],[CHI PHÍ]]","v":4400000},{"$f":"IFERROR(IF(Danh_Sách_Kiểm_Kê[[#This Row],[SL]]<=Danh_Sách_Kiểm_Kê[[#This Row],[SL ĐẶT HÀNG LẠI]],1,0),0)","v":0}]

{"sheet":"Danh sách Chọn Kiểm kê","index":1,"n_rows":9,"n_cols":9,"rows_kept":9,"cut":false,"hidden":false,"merged":[]}
[null,"DANH SÁCH CHỌN KIỂM KÊ"]
[null,null,"DANH SÁCH KIỂM KÊ"]
[]
[null,"ĐƠN HÀNG #","SKU","SL CHỌN","SL CÓ SẴN","MÔ TẢ MỤC","ĐƠN VỊ","THÙNG #","VỊ TRÍ"]
[null,"TP001-1","SP7875",3,{"$f":"IFERROR(VLOOKUP(InventoryPickList[SKU],Danh_Sách_Kiểm_Kê[],6,FALSE),\"\")","v":20},{"$f":"IFERROR(VLOOKUP(InventoryPickList[SKU],Danh_Sách_Kiểm_Kê[],2,FALSE),\"\")","v":"Mục 1"},{"$f":"IFERROR(VLOOKUP(InventoryPickList[SKU],Danh_Sách_Kiểm_Kê[],5,FALSE),\"\")","v":"Một"},{"$f":"IFERROR(VLOOKUP(InventoryPickList[SKU],Danh_Sách_Kiểm_Kê[],3,FALSE),\"\")","v":"T345"},{"$f":"IFERROR(VLOOKUP(InventoryPickList[SKU],Danh_Sách_Kiểm_Kê[],4,FALSE),\"\")","v":"Hàng 2, khoảng trống 1"}]
[null,"TP001-1","YE98767",1,{"$f":"IFERROR(VLOOKUP(InventoryPickList[SKU],Danh_Sách_Kiểm_Kê[],6,FALSE),\"\")","v":40},{"$f":"IFERROR(VLOOKUP(InventoryPickList[SKU],Danh_Sách_Kiểm_Kê[],2,FALSE),\"\")","v":"Mục 4"},{"$f":"IFERROR(VLOOKUP(InventoryPickList[SKU],Danh_Sách_Kiểm_Kê[],5,FALSE),\"\")","v":"Hộp (chứa 10 đơn vị)"},{"$f":"IFERROR(VLOOKUP(InventoryPickList[SKU],Danh_Sách_Kiểm_Kê[],3,FALSE),\"\")","v":"T9876"},{"$f":"IFERROR(VLOOKUP(InventoryPickList[SKU],Danh_Sách_Kiểm_Kê[],4,FALSE),\"\")","v":"Hàng 3, khoảng trống 2"}]
[null,"TP001-1","BM87684",2,{"$f":"IFERROR(VLOOKUP(InventoryPickList[SKU],Danh_Sách_Kiểm_Kê[],6,FALSE),\"\")","v":10},{"$f":"IFERROR(VLOOKUP(InventoryPickList[SKU],Danh_Sách_Kiểm_Kê[],2,FALSE),\"\")","v":"Mục 7"},{"$f":"IFERROR(VLOOKUP(InventoryPickList[SKU],Danh_Sách_Kiểm_Kê[],5,FALSE),\"\")","v":"Một"},{"$f":"IFERROR(VLOOKUP(InventoryPickList[SKU],Danh_Sách_Kiểm_Kê[],3,FALSE),\"\")","v":"T349"},{"$f":"IFERROR(VLOOKUP(InventoryPickList[SKU],Danh_Sách_Kiểm_Kê[],4,FALSE),\"\")","v":"Hàng 1, khoảng trống 2"}]
[null,"TP001-1","TS3456",6,{"$f":"IFERROR(VLOOKUP(InventoryPickList[SKU],Danh_Sách_Kiểm_Kê[],6,FALSE),\"\")","v":15},{"$f":"IFERROR(VLOOKUP(InventoryPickList[SKU],Danh_Sách_Kiểm_Kê[],2,FALSE),\"\")","v":"Mục 10"},{"$f":"IFERROR(VLOOKUP(InventoryPickList[SKU],Danh_Sách_Kiểm_Kê[],5,FALSE),\"\")","v":"Một"},{"$f":"IFERROR(VLOOKUP(InventoryPickList[SKU],Danh_Sách_Kiểm_Kê[],3,FALSE),\"\")","v":"T349"},{"$f":"IFERROR(VLOOKUP(InventoryPickList[SKU],Danh_Sách_Kiểm_Kê[],4,FALSE),\"\")","v":"Hàng 1, khoảng trống 2"}]
[null,"TP001-1","MK676554",3,{"$f":"IFERROR(VLOOKUP(InventoryPickList[SKU],Danh_Sách_Kiểm_Kê[],6,FALSE),\"\")","v":10},{"$f":"IFERROR(VLOOKUP(InventoryPickList[SKU],Danh_Sách_Kiểm_Kê[],2,FALSE),\"\")","v":"Mục 3"},{"$f":"IFERROR(VLOOKUP(InventoryPickList[SKU],Danh_Sách_Kiểm_Kê[],5,FALSE),\"\")","v":"Một"},{"$f":"IFERROR(VLOOKUP(InventoryPickList[SKU],Danh_Sách_Kiểm_Kê[],3,FALSE),\"\")","v":"T5789"},{"$f":"IFERROR(VLOOKUP(InventoryPickList[SKU],Danh_Sách_Kiểm_Kê[],4,FALSE),\"\")","v":"Hàng 1, khoảng trống 1"}]

{"sheet":"Tìm Thùng","index":2,"n_rows":11,"n_cols":7,"rows_kept":11,"cut":false,"hidden":false,"merged":[]}
[null,"TÌM THÙNG"]
[null,"DANH SÁCH KIỂM KÊ"]
[]
[null,"THÙNG #","MÔ TẢ","VỊ TRÍ","CHIỀU RỘNG","CHIỀU CAO","CHIỀU DÀI"]
[null,"T345","Thùng lớn","Hàng 2, khoảng trống 1",50,10,10]
[null,"T5789","Thùng nhỏ","Hàng 1, khoảng trống 1",25,5,5]
[null,"T9876","Thùng lớn","Hàng 3, khoảng trống 2",50,10,10]
[null,"T098","Thùng vừa","Hàng 3, khoảng trống 1",30,7,10]
[null,"T349","Thùng nhỏ","Hàng 1, khoảng trống 2",25,5,5]
[null,"T5789","Thùng lớn","Hàng 4, khoảng trống 5",50,10,10]
[null,"T9875","Thùng lớn","Hàng 2, khoảng trống 2",50,10,10]